[Event "Summer Prague Open-A 2022"]
[Site "Prague"]
[Date "2022.08.07"]
[Round "3.6"]
[White "Demeter, Dorina"]
[Black "Hollan, Martin"]
[Result "1/2-1/2"]
[ECO "A04"]
[WhiteElo "2176"]
[BlackElo "2399"]
[Annotator "TA"]
[PlyCount "102"]
[EventDate "2022.08.05"]
[EventType "swiss"]
[EventCountry "CZE"]
[SourceTitle "playchess.com"]
[Source "ChessBase"]
[SourceQuality "1"]
[TimeControl "40/5400+30:1800+30"]

{[%evp 21,102,0,-2,-8,40,37,42,38,40,2,27,25,22,20,26,0,0,-6,0,-88,-88,-83,-91,-104,-102,-113,-113,-104,-101,-176,-183,-169,-167,-175,-163,-412,-380,-405,-376,-400,-398,-387,-380,-409,-199,-192,-192,-192,-109,-109,-109,-111,-109,-109,-109,-109,-109,-109,-109,-109,-109,-109,-109,-109,-109,-109,-109,-109,-109,-109,-109,-109,-109,-109,-109,-109,8,8,8,8,8,8,8]} 1. Nf3 {[%emt 0:00:26] ChessBase II} e6 {[%emt 0:02:33]} 2. c4 {[%emt 0:01:04]} f5 {[%emt 0:00:06]} 3. Nc3 {[%emt 0:03:35]} Nf6 {[%emt 0:00:08]} 4. g3 {[%emt 0:00:53]} d5 {[%emt 0:00:19]} 5. d4 {[%emt 0:04:04]} c6 {[%emt 0:01:14]} 6. Bg2 {[%emt 0:00:10]} Bd6 {[%emt 0:00:08]} 7. O-O {[%emt 0:06:55]} O-O {[%emt 0:01:05]} 8. Qc2 {[%emt 0:06:45]} Ne4 {[%emt 0:00:09]} 9. Ne5 {[%emt 0:03:31]} Nd7 {[%emt 0:03:19]} 10. Bf4 {[%emt 0:11:30]} Bxe5 {[%emt 0:04:07]} 11. Bxe5 {[%emt 0:07:55]} Nxe5 {[%emt 0:00:14]} 12. dxe5 {[%emt 0:00:02] A90: Dutch Defence: Miscellaneous and Modern Stonewall (with ...Bd6).} Nxc3 {[%emt 0:18:16]} (12... Qc7 $11) 13. Qxc3 $14 {[%emt 0:01:47] [#]} a5 $146 {[%emt 0:03:43]} ({Predecessor:} 13... f4 14. Rad1 Qb6 15. gxf4 Rxf4 16. e4 dxe4 17. Rd4 Qc7 18. Rfd1 Rf8 19. Rd6 Qe7 {0-1 (59) Podhorzer,D-Kolnhofer,J Vienna 1933 EXT 2001 [ChessBase II]}) 14. f4 {[%emt 0:18:19] White is slightly better.} Qb6+ {[%emt 0:12:14]} 15. c5 {[%emt 0:01:12]} Qa6 {[%emt 0:06:09]} 16. Bf3 {[%emt 0:02:47]} b6 {[%emt 0:00:33]} 17. Rfc1 {[%emt 0:03:37]} Bd7 {[%emt 0:00:57]} 18. Rc2 {[%emt 0:12:58]} Rfb8 {[%emt 0:12:10]} 19. Rac1 {[%emt 0:00:35]} Qb5 {[%emt 0:06:06]} 20. Kf2 {[%emt 0:04:28]} (20. cxb6 $11 {remains equal.} Qxb6+ 21. Kg2) 20... Qxc5+ {[%emt 0:05:59]} 21. Qxc5 {[%emt 0:00:54]} bxc5 {[%emt 0:01:28]} 22. b3 {[%emt 0:02:51] Prevents c4.} a4 {[%emt 0:00:31]} 23. Rxc5 {[%emt 0:01:35]} axb3 {[%emt 0:00:17]} 24. axb3 {[%emt 0:00:05]} Rxb3 {[%emt 0:01:53]} 25. g4 {[%emt 0:03:15]} (25. R1c3 $17 {keeps fighting.} Rb4 26. Rc2) 25... fxg4 $19 {[%emt 0:05:21]} 26. Bxg4 {[%emt 0:00:01] [#]} Rf8 $1 {[%emt 0:01:13]} 27. e3 {[%emt 0:01:42]} g5 $1 {[%emt 0:02:36]} 28. Rxc6 $2 {[%emt 0:00:52]} (28. R5c3 {might work better.} Rxc3 29. Rxc3) 28... Bxc6 {[%emt 0:00:21]} 29. Bxe6+ {[%emt 0:00:14]} Kh8 {[%emt 0:00:15]} 30. Rxc6 {[%emt 0:00:21]} gxf4 {[%emt 0:00:07]} 31. exf4 {[%emt 0:00:32]} Rxf4+ {[%emt 0:01:01][%mdl 4096] Endgame KRR-KRB} 32. Kg2 {[%emt 0:00:29]} Rc4 {[%emt 0:09:38]} (32... Rd4 $142 {( -> ...Rd2+)} 33. Rc8+ Kg7 34. Rg8+ Kh6) 33. Rxc4 {[%emt 0:00:48]} dxc4 {[%emt 0:00:05]} 34. Bxc4 {[%emt 0:00:05] KR-KB} Rb4 {[%emt 0:02:26]} ({Black should play} 34... Re3 $19 35. e6 Kg7) 35. Bf7 $17 {[%emt 0:01:04]} Kg7 {[%emt 0:00:12]} 36. e6 {[%emt 0:00:09]} Kf6 {[%emt 0:00:24]} 37. Kg3 {[%emt 0:00:29]} h6 {[%emt 0:01:06]} 38. Kf3 {[%emt 0:00:44]} Ra4 {[%emt 0:00:35]} 39. Kg3 {[%emt 0:00:07]} Ra1 {[%emt 0:00:27]} 40. Kf4 {[%emt 0:01:07]} Rg1 {[%emt 0:00:18]} 41. Kf3 {[%emt 0:30:19]} Rg5 {[%emt 0:05:30]} 42. h4 {[%emt 0:00:00][%cal Bh2h4,Bh4h5][%mdl 32]} Rf5+ {[%emt 0:02:05]} 43. Kg4 {[%emt 0:00:00][%cal Oe6e7]} Ra5 {[%emt 0:03:17]} 44. h5 {[%emt 0:00:00]} Ra4+ {[%emt 0:05:37]} 45. Kf3 {[%emt 0:00:00]} Rb4 {[%emt 0:01:43]} 46. Kg3 {[%emt 0:00:00]} Re4 {[%emt 0:00:39]} 47. Kf3 {[%emt 0:00:00]} Rh4 {[%emt 0:00:39]} 48. Kg3 {[%emt 0:00:00]} Rxh5 {[%emt 0:00:59]} 49. Bxh5 $11 {[%emt 0:00:00] [#] White wants to mate with Bf7. The position is equal.} Kxe6 {[%emt 0:00:03]} 50. Bd1 {[%emt 0:00:00]} h5 {[%emt 0:00:04]} 51. Bxh5 {[%emt 0:00:00]} Ke5 {Weighted Error Value: White=0.17 (very precise) /Black=0.18 (very precise)} 1/2-1/2

[Event "Summer Prague Open-A 2022"]
[Site "Prague"]
[Date "2022.08.07"]
[Round "3.7"]
[White "Meissner, Felix"]
[Black "Hajiyev, Kanan"]
[Result "1/2-1/2"]
[ECO "B30"]
[WhiteElo "2381"]
[BlackElo "2142"]
[Annotator "RC"]
[PlyCount "110"]
[EventDate "2022.08.05"]
[EventType "swiss"]
[EventCountry "CZE"]
[SourceTitle "playchess.com"]
[Source "ChessBase"]
[SourceQuality "1"]
[TimeControl "40/5400+30:1800+30"]

1. e4 {[%emt 0:07:05]} c5 {[%emt 0:00:08]} 2. Nf3 {[%emt 0:00:15]} Nc6 {[%emt 0:00:07]} 3. Bb5 {[%emt 0:01:07]} Nd4 {[%emt 0:00:13]} 4. Bc4 {[%emt 0:02:36]} d6 {[%emt 0:06:21]} 5. c3 {[%emt 0:05:21]} Nxf3+ {[%emt 0:04:50]} 6. Qxf3 {[%emt 0:00:08]} Nf6 {[%emt 0:00:08]} 7. O-O {[%emt 0:01:53]} e5 {[%emt 0:04:49]} 8. d4 {[%emt 0:08:22]} Qc7 {[%emt 0:09:49]} 9. dxe5 {[%emt 0:01:26]} dxe5 {[%emt 0:00:23]} 10. Bg5 {[%emt 0:07:35]} Be7 {[%emt 0:00:25]} 11. Bb5+ {[%emt 0:05:59]} Bd7 {[%emt 0:05:10]} 12. Bxd7+ {[%emt 0:00:14]} Nxd7 {[%emt 0:01:31]} 13. Bxe7 {[%emt 0:00:18]} Kxe7 {[%emt 0:00:02]} 14. Na3 {[%emt 0:07:08]} Rhd8 {[%emt 0:01:14]} 15. Nc4 {[%emt 0:01:20]} Kf8 {[%emt 0:02:48]} 16. Qg3 {[%emt 0:05:33]} b5 {[%emt 0:08:12]} 17. Ne3 {[%emt 0:00:30]} Qc6 18. f3 c4 {[%emt 0:05:21]} 19. Kh1 {[%emt 0:03:27]} Qg6 {[%emt 0:03:42]} 20. a4 {[%emt 0:10:46]} Qxg3 {[%emt 0:03:13]} 21. hxg3 {[%emt 0:00:03]} a6 {[%emt 0:01:25]} 22. Rfd1 {[%emt 0:01:34]} Nc5 {[%emt 0:09:33]} 23. Rxd8+ {[%emt 0:04:41]} Rxd8 {[%emt 0:00:01]} 24. axb5 {[%emt 0:00:12]} axb5 {[%emt 0:00:02]} 25. Ra5 {[%emt 0:02:34]} Rb8 {[%emt 0:00:48]} 26. Nxc4 {[%emt 0:02:12]} bxc4 {[%emt 0:01:00]} 27. Rxc5 {[%emt 0:00:06]} Rxb2 {[%emt 0:00:05]} 28. Rxc4 {[%emt 0:02:44]} h5 {[%emt 0:01:22]} 29. Rc5 {[%emt 0:09:38]} f6 {[%emt 0:00:35]} 30. Rc7 {[%emt 0:00:20]} Kg8 {[%emt 0:02:16]} 31. c4 {[%emt 0:00:33]} Kh7 {[%emt 0:00:11]} 32. c5 {[%emt 0:00:23]} Kh6 {[%emt 0:00:37]} 33. c6 {[%emt 0:00:58]} Rc2 {[%emt 0:00:07]} 34. Kg1 {[%emt 0:04:09]} g6 {[%emt 0:09:56]} 35. f4 {[%emt 0:03:12]} h4 {[%emt 0:03:05]} 36. Kh2 {[%emt 0:01:30]} hxg3+ {[%emt 0:00:53]} 37. Kxg3 {[%emt 0:00:05]} exf4+ {[%emt 0:00:15]} 38. Kxf4 {[%emt 0:00:51]} Rxg2 {[%emt 0:00:20]} 39. Rf7 {[%emt 0:00:45]} Rf2+ {[%emt 0:12:54]} 40. Ke3 {[%emt 0:01:20]} Rf1 {[%emt 0:00:33]} 41. Kd2 {[%emt 0:31:00]} Rf2+ {[%emt 0:32:25]} 42. Kd3 {[%emt 0:00:00]} Rf1 {[%emt 0:00:00]} 43. c7 {[%emt 0:00:00]} Rc1 {[%emt 0:00:00]} 44. Kd4 {[%emt 0:00:00]} g5 {[%emt 0:00:00]} 45. Kd5 {[%emt 0:00:00]} Kg6 {[%emt 0:00:00]} 46. Re7 {[%emt 0:00:00]} g4 {[%emt 0:00:00]} 47. Kd6 {[%emt 0:00:00]} Rd1+ {[%emt 0:03:20]} 48. Ke6 {[%emt 0:00:00]} Rc1 {[%emt 0:00:06]} 49. Kd7 {[%emt 0:00:00]} Rd1+ {[%emt 0:00:20]} 50. Ke8 {[%emt 0:00:00]} Rc1 {[%emt 0:00:21]} 51. Kd7 {[%emt 0:04:39]} Rd1+ {[%emt 0:01:10]} 52. Ke6 {[%emt 0:00:34]} Rc1 {[%emt 0:00:03]} 53. Kd7 {[%emt 0:00:54]} Rd1+ {[%emt 0:00:03]} 54. Ke8 {[%emt 0:00:23]} Rc1 {[%emt 0:00:01]} 55. Kd7 {[%emt 0:01:03]} Rd1+ {[%emt 0:00:08]} 1/2-1/2

[Event "Summer Prague Open-A 2022"]
[Site "Prague"]
[Date "2022.08.07"]
[Round "3.8"]
[White "Ranaldi, Lucas"]
[Black "Sidletskyi, Ivan"]
[Result "1/2-1/2"]
[ECO "D40"]
[WhiteElo "2339"]
[BlackElo "2075"]
[Annotator "RC"]
[PlyCount "161"]
[EventDate "2022.08.05"]
[EventType "swiss"]
[EventCountry "CZE"]
[SourceTitle "playchess.com"]
[Source "ChessBase"]
[SourceQuality "1"]
[TimeControl "40/5400+30:1800+30"]

1. c4 Nf6 {[%emt 0:10:22]} 2. Nf3 {[%emt 0:00:40]} e6 {[%emt 0:01:27]} 3. Nc3 {[%emt 0:00:19]} d5 {[%emt 0:00:56]} 4. d4 {[%emt 0:00:11]} c5 {[%emt 0:01:56]} 5. e3 {[%emt 0:13:22]} b6 {[%emt 0:10:28]} 6. dxc5 {[%emt 0:03:10]} bxc5 {[%emt 0:05:52]} 7. Be2 {[%emt 0:12:00]} Be7 {[%emt 0:02:43]} 8. O-O {[%emt 0:00:31]} O-O {[%emt 0:00:33]} 9. b3 {[%emt 0:00:43]} Nc6 {[%emt 0:03:38]} 10. cxd5 {[%emt 0:01:16]} exd5 {[%emt 0:02:42]} 11. Bb2 {[%emt 0:04:45]} Be6 {[%emt 0:03:54]} 12. Rc1 {[%emt 0:00:56]} Rc8 {[%emt 0:04:11]} 13. Na4 {[%emt 0:02:28]} Na5 {[%emt 0:12:54]} 14. Bxf6 {[%emt 0:12:52]} gxf6 {[%emt 0:00:11]} 15. Qd2 {[%emt 0:01:26]} Nb7 {[%emt 0:09:40]} 16. Ba6 {[%emt 0:16:38]} Qd7 {[%emt 0:00:50]} 17. e4 {[%emt 0:01:26]} Rfd8 {[%emt 0:07:26]} 18. exd5 {[%emt 0:00:44]} Bxd5 {[%emt 0:01:39]} 19. Nc3 {[%emt 0:06:38]} Bc6 {[%emt 0:04:29]} 20. Qxd7 {[%emt 0:01:12]} Rxd7 {[%emt 0:00:07]} 21. Rfd1 {[%emt 0:03:27]} Rcd8 {[%emt 0:00:41]} 22. Rxd7 {[%emt 0:00:34]} Rxd7 {[%emt 0:00:04]} 23. Bb5 {[%emt 0:00:39]} Bxb5 {[%emt 0:00:57]} 24. Nxb5 {[%emt 0:00:04]} Na5 {[%emt 0:03:40]} 25. Na3 {[%emt 0:03:34]} Nc6 {[%emt 0:00:37]} 26. Nc4 {[%emt 0:02:42]} Kg7 {[%emt 0:04:29]} 27. Kf1 {[%emt 0:05:33]} f5 {[%emt 0:01:13]} 28. Ne3 {[%emt 0:04:10]} Kf6 {[%emt 0:01:45]} 29. Rd1 {[%emt 0:00:41]} Rxd1+ {[%emt 0:00:34]} 30. Nxd1 {[%emt 0:00:02]} Ke6 {[%emt 0:01:01]} 31. Ke2 {[%emt 0:00:35]} Nb4 {[%emt 0:00:28]} 32. a4 {[%emt 0:00:36]} Bf6 {[%emt 0:01:00]} 33. Ne3 {[%emt 0:02:07]} f4 {[%emt 0:00:15]} 34. Nc4 {[%emt 0:00:19]} Kd5 {[%emt 0:00:31]} 35. Ne1 {[%emt 0:00:31]} Nc6 {[%emt 0:03:03]} 36. Nc2 {[%emt 0:00:12]} Ke4 {[%emt 0:01:10]} 37. Nd6+ {[%emt 0:00:53]} Kd5 {[%emt 0:00:01]} 38. Nc4 {[%emt 0:00:43]} Ke4 {[%emt 0:00:02]} 39. Nd2+ {[%emt 0:00:48]} Kd5 {[%emt 0:00:14]} 40. f3 {[%emt 0:00:26]} Na5 {[%emt 0:00:34]} 41. Na3 {[%emt 0:06:23]} Bc3 {[%emt 0:08:30]} 42. Nb5 {[%emt 0:12:18]} Bxd2 {[%emt 0:00:48]} 43. Kxd2 {[%emt 0:00:02]} Nxb3+ {[%emt 0:00:19]} 44. Kc3 {[%emt 0:00:18]} Nd4 {[%emt 0:03:59]} 45. Nxa7 {[%emt 0:00:17]} Ne2+ {[%emt 0:02:55]} 46. Kd3 {[%emt 0:04:56]} Nc1+ {[%emt 0:05:43]} 47. Kc2 {[%emt 0:00:15]} Na2 {[%emt 0:01:36]} 48. Nb5 {[%emt 0:01:43]} Kc4 {[%emt 0:02:19]} 49. Nd6+ {[%emt 0:00:38]} Kd4 {[%emt 0:02:09]} 50. a5 {[%emt 0:06:21]} c4 {[%emt 0:00:24]} 51. Nb5+ {[%emt 0:00:56]} Kc5 {[%emt 0:00:22]} 52. Nc3 {[%emt 0:00:14]} Nb4+ {[%emt 0:00:17]} 53. Kd2 {[%emt 0:00:08]} f5 {[%emt 0:00:52]} 54. h4 {[%emt 0:01:33]} Nc6 {[%emt 0:02:08]} 55. a6 {[%emt 0:00:19]} Kb6 {[%emt 0:00:20]} 56. Nd5+ {[%emt 0:00:14]} Kxa6 {[%emt 0:00:06]} 57. Kc3 {[%emt 0:01:12]} Kb5 {[%emt 0:00:51]} 58. Nxf4 {[%emt 0:00:23]} Kc5 {[%emt 0:00:24]} 59. Ne6+ {[%emt 0:00:18]} Kd5 {[%emt 0:00:17]} 60. Nf4+ {[%emt 0:01:13]} Ke5 {[%emt 0:00:35]} 61. Ne2 {[%emt 0:00:41]} Kd5 {[%emt 0:00:09]} 62. h5 {[%emt 0:00:42]} h6 {[%emt 0:00:54]} 63. Nf4+ {[%emt 0:00:16]} Ke5 {[%emt 0:00:41]} 64. Ng6+ {[%emt 0:00:28]} Kd5 {[%emt 0:00:30]} 65. Nh8 {[%emt 0:00:41]} Nd4 {[%emt 0:01:12]} 66. Nf7 {[%emt 0:00:22]} Ne2+ {[%emt 0:00:08]} 67. Kd2 {[%emt 0:00:20]} Ng3 {[%emt 0:00:17]} 68. Nxh6 {[%emt 0:00:16]} Kd4 {[%emt 0:01:04]} 69. Nf7 {[%emt 0:01:04]} Nxh5 {[%emt 0:00:13]} 70. Nd6 {[%emt 0:00:20]} Ng3 {[%emt 0:01:08]} 71. Nb5+ {[%emt 0:00:12]} Kc5 {[%emt 0:00:27]} 72. Nc3 {[%emt 0:00:37]} Kb4 {[%emt 0:00:19]} 73. Kc2 {[%emt 0:00:35]} Kc5 {[%emt 0:00:28]} 74. Kd2 {[%emt 0:00:32]} Kb4 {[%emt 0:00:07]} 75. Nd5+ {[%emt 0:00:22]} Kc5 {[%emt 0:00:43]} 76. Ne3 {[%emt 0:00:15]} f4 {[%emt 0:00:27]} 77. Nc2 {[%emt 0:01:03]} Nf5 {[%emt 0:00:13]} 78. Kc3 {[%emt 0:00:21]} Nh4 {[%emt 0:00:05]} 79. Ne1 {[%emt 0:00:37]} Kd5 {[%emt 0:00:02]} 80. Kd2 {[%emt 0:00:15]} Kd4 {[%emt 0:00:08]} 81. Nc2+ {[%emt 0:00:22]} 1/2-1/2

[Event "Summer Prague Open-A 2022"]
[Site "Prague"]
[Date "2022.08.07"]
[Round "3.9"]
[White "Winter, Ondrej"]
[Black "Risting, Eivind Olav"]
[Result "0-1"]
[ECO "B50"]
[WhiteElo "2168"]
[BlackElo "2325"]
[Annotator "RC"]
[PlyCount "36"]
[EventDate "2022.08.05"]
[EventType "swiss"]
[EventCountry "CZE"]
[SourceTitle "playchess.com"]
[Source "ChessBase"]
[SourceQuality "1"]
[TimeControl "40/5400+30:1800+30"]

1. e4 {[%emt 0:00:03]} c5 {[%emt 0:00:40]} 2. Nf3 {[%emt 0:00:06]} d6 {[%emt 0:00:22]} 3. c3 {[%emt 0:00:41]} Nf6 {[%emt 0:01:51]} 4. Bd3 {[%emt 0:03:23]} Nc6 {[%emt 0:01:04]} 5. O-O {[%emt 0:01:23]} Bg4 {[%emt 0:10:24]} 6. h3 {[%emt 0:10:43]} Bh5 {[%emt 0:01:51]} 7. Re1 {[%emt 0:08:58]} Qd7 {[%emt 0:04:38]} 8. Bc2 {[%emt 0:12:18]} g5 {[%emt 0:05:25]} 9. d3 {[%emt 0:25:21]} Rg8 {[%emt 0:04:33]} 10. Bb3 {[%emt 0:12:10]} Bh6 {[%emt 0:15:11]} 11. g4 {[%emt 0:13:19]} Nxg4 {[%emt 0:05:56]} 12. hxg4 {[%emt 0:00:02]} Qxg4+ {[%emt 0:00:34]} 13. Kh2 {[%emt 0:00:03]} Bg7 {[%emt 0:06:02]} 14. Rg1 {[%emt 0:06:30]} Be5+ {[%emt 0:12:15]} 15. Nxe5 {[%emt 0:00:01]} Qh4+ {[%emt 0:00:18]} 16. Kg2 {[%emt 0:00:07]} Bxd1 {[%emt 0:02:56]} 17. Bxd1 {[%emt 0:00:49]} Nxe5 {[%emt 0:01:31]} 18. Rh1 {[%emt 0:00:44]} Nxd3 {[%emt 0:00:41]} 0-1

[Event "Summer Prague Open-A 2022"]
[Site "Prague"]
[Date "2022.08.07"]
[Round "3.10"]
[White "Krivanek, Vladimir"]
[Black "Kulhanek, Tomas"]
[Result "0-1"]
[ECO "A40"]
[WhiteElo "2152"]
[BlackElo "2319"]
[Annotator "RC"]
[PlyCount "100"]
[EventDate "2022.08.05"]
[EventType "swiss"]
[EventCountry "CZE"]
[SourceTitle "playchess.com"]
[Source "ChessBase"]
[SourceQuality "1"]
[TimeControl "40/5400+30:1800+30"]

1. d4 {[%emt 0:14:09]} Nf6 {[%emt 0:00:18]} 2. c4 {[%emt 0:01:02]} e6 {[%emt 0:00:22]} 3. g3 {[%emt 0:00:50]} Bb4+ {[%emt 0:00:14]} 4. Bd2 {[%emt 0:01:14]} Be7 {[%emt 0:02:09]} 5. Nc3 {[%emt 0:01:25]} d5 {[%emt 0:00:08]} 6. Bg2 {[%emt 0:01:34]} O-O {[%emt 0:00:10]} 7. cxd5 {[%emt 0:06:30]} exd5 {[%emt 0:01:14]} 8. Qb3 {[%emt 0:00:14]} c6 {[%emt 0:03:20]} 9. Nf3 {[%emt 0:03:05]} Na6 {[%emt 0:03:42]} 10. O-O {[%emt 0:03:39]} Nc7 {[%emt 0:03:26]} 11. Rad1 {[%emt 0:01:49]} Nce8 {[%emt 0:02:03]} 12. Ne5 {[%emt 0:11:27]} Qb6 {[%emt 0:04:27]} 13. Qxb6 {[%emt 0:07:31]} axb6 {[%emt 0:03:13]} 14. a4 {[%emt 0:02:36]} Nd6 {[%emt 0:03:41]} 15. b3 {[%emt 0:03:47]} Be6 {[%emt 0:03:14]} 16. f3 {[%emt 0:08:15]} Rfc8 {[%emt 0:08:39]} 17. e3 {[%emt 0:05:00]} c5 {[%emt 0:05:19]} 18. g4 {[%emt 0:04:40]} h6 {[%emt 0:04:59]} 19. Rb1 {[%emt 0:06:37]} cxd4 {[%emt 0:08:41]} 20. exd4 {[%emt 0:00:08]} b5 {[%emt 0:00:09]} 21. axb5 {[%emt 0:02:40]} Bd8 {[%emt 0:02:36]} 22. Rfc1 {[%emt 0:01:07]} Ba5 {[%emt 0:07:52]} 23. Bf1 {[%emt 0:00:58]} Bb4 {[%emt 0:00:40]} 24. Ne4 {[%emt 0:08:32]} Bxd2 {[%emt 0:04:34]} 25. Nxd2 {[%emt 0:00:05]} Ra2 {[%emt 0:01:42]} 26. Rxc8+ {[%emt 0:00:32]} Bxc8 {[%emt 0:05:36]} 27. Rd1 {[%emt 0:00:11]} Bd7 {[%emt 0:03:18]} 28. Nxd7 {[%emt 0:01:10]} Nxd7 {[%emt 0:00:02]} 29. Kf2 {[%emt 0:00:51]} g5 {[%emt 0:04:17]} 30. Ke3 {[%emt 0:00:55]} Nf8 {[%emt 0:05:38]} 31. f4 {[%emt 0:02:02]} Ne6 {[%emt 0:01:12]} 32. f5 {[%emt 0:00:53]} Nf4 {[%emt 0:00:22]} 33. Rc1 {[%emt 0:00:27]} Kg7 {[%emt 0:01:56]} 34. Rc7 {[%emt 0:00:57]} h5 {[%emt 0:01:10]} 35. Rd7 {[%emt 0:00:24]} Ne8 {[%emt 0:00:12]} 36. gxh5 {[%emt 0:00:36]} Nf6 {[%emt 0:01:19]} 37. h6+ {[%emt 0:00:09]} Kxh6 {[%emt 0:02:58]} 38. Rd6 {[%emt 0:00:40]} Kg7 {[%emt 0:00:09]} 39. h3 {[%emt 0:00:42]} Rc2 {[%emt 0:00:52]} 40. b6 {[%emt 0:00:35]} Rxd2 {[%emt 0:02:45]} 41. Rxf6 {[%emt 0:13:19]} Rd1 {[%emt 0:00:19]} 42. Rd6 {[%emt 0:01:31]} Rxf1 {[%emt 0:00:15]} 43. Rd7 {[%emt 0:00:17]} Rh1 {[%emt 0:00:24]} 44. Kf3 {[%emt 0:00:35]} Rb1 {[%emt 0:05:00]} 45. h4 {[%emt 0:01:52]} Rf1+ {[%emt 0:02:06]} 46. Kg4 {[%emt 0:02:40]} Rg1+ {[%emt 0:00:15]} 47. Kf3 {[%emt 0:00:11]} gxh4 {[%emt 0:00:51]} 48. f6+ {[%emt 0:04:52]} Kxf6 {[%emt 0:01:09]} 49. Kxf4 {[%emt 0:02:38]} h3 {[%emt 0:00:17]} 50. Rxd5 {[%emt 0:00:21]} h2 {[%emt 0:00:17]} 0-1

[Event "Summer Prague Open-A 2022"]
[Site "Prague"]
[Date "2022.08.07"]
[Round "3.11"]
[White "Philipp, Mathias"]
[Black "Santagati, Alessandro"]
[Result "1/2-1/2"]
[ECO "B27"]
[WhiteElo "2092"]
[BlackElo "2299"]
[Annotator "NA RC"]
[PlyCount "182"]
[EventDate "2022.08.05"]
[EventType "swiss"]
[EventCountry "CZE"]
[SourceTitle "playchess.com"]
[Source "ChessBase"]
[SourceQuality "1"]
[TimeControl "40/5400+30:1800+30"]

1. e4 {[%emt 0:00:02]} c5 {[%emt 0:00:12]} 2. Nf3 {[%emt 0:00:05]} g6 {[%emt 0:00:07]} 3. c3 {[%emt 0:00:03]} d5 {[%emt 0:00:27]} 4. exd5 {[%emt 0:00:06]} Qxd5 {[%emt 0:00:12]} 5. d4 {[%emt 0:00:06]} Bg7 {[%emt 0:00:13]} 6. Be2 {[%emt 0:00:40]} cxd4 {[%emt 0:08:52]} 7. cxd4 {[%emt 0:03:50]} Nf6 {[%emt 0:01:56]} 8. Nc3 {[%emt 0:00:22]} Qa5 {[%emt 0:00:24]} 9. O-O {[%emt 0:00:36]} O-O {[%emt 0:00:42]} 10. Ne5 {[%emt 0:05:04]} Nbd7 {[%emt 0:02:23]} 11. Bf4 {[%emt 0:01:09]} Nxe5 {[%emt 0:08:16]} 12. Bxe5 {[%emt 0:05:51]} Be6 {[%emt 0:08:02]} 13. Bf3 {[%emt 0:06:23]} Nd5 {[%emt 0:03:37]} 14. Bxg7 {[%emt 0:02:39]} Kxg7 {[%emt 0:00:26]} 15. Qe2 {[%emt 0:03:42]} Nxc3 {[%emt 0:26:42]} 16. bxc3 {[%emt 0:00:38]} Rad8 {[%emt 0:04:34]} 17. Rfd1 $11 {[%emt 0:08:58]} Qxc3 {[%emt 0:08:12]} 18. Bxb7 {[%emt 0:00:45]} Qc4 {[%emt 0:04:46]} 19. Qe5+ {[%emt 0:02:21]} f6 {[%emt 0:02:01]} 20. Qc5 {[%emt 0:00:49]} Rd7 {[%emt 0:03:06]} 21. Bf3 {[%emt 0:10:11]} Rc8 {[%emt 0:00:54]} 22. Qa3 {[%emt 0:02:39]} Qc3 {[%emt 0:01:22]} 23. Qa6 {[%emt 0:03:40]} Qc4 {[%emt 0:00:21]} 24. Qa3 {[%emt 0:00:11]} Rb8 {[%emt 0:03:12]} 25. d5 {[%emt 0:01:13]} Bg4 {[%emt 0:03:47]} 26. Rac1 {[%emt 0:04:08]} Qb4 {[%emt 0:01:23]} 27. Qe3 {[%emt 0:01:30]} Bxf3 {[%emt 0:00:14]} 28. Qxf3 {[%emt 0:00:01]} Qb2 {[%emt 0:02:39]} 29. a4 {[%emt 0:02:30]} Rb4 {[%emt 0:01:29]} 30. Qe3 {[%emt 0:05:36]} Rxa4 {[%emt 0:01:49]} 31. Qe6 {[%emt 0:00:46]} Ra2 {[%emt 0:03:46]} 32. Rf1 {[%emt 0:02:36]} Qb7 {[%emt 0:00:07]} 33. d6 {[%emt 0:05:34]} Ra6 {[%emt 0:00:10]} 34. Rb1 {[%emt 0:00:03]} Qc8 {[%emt 0:01:05]} 35. Rbc1 {[%emt 0:05:53]} Qe8 {[%emt 0:01:01]} 36. Rfe1 {[%emt 0:07:37]} Raxd6 {[%emt 0:00:30]} 37. Qa2 {[%emt 0:00:24]} Qd8 {[%emt 0:00:59]} 38. Qb3 {[%emt 0:02:07]} Qb6 {[%emt 0:01:06]} 39. Qa3 {[%emt 0:00:22]} Re6 {[%emt 0:02:17]} 40. h4 {[%emt 0:01:05]} Rxe1+ {[%emt 0:00:34]} 41. Rxe1 {[%emt 0:30:02]} Qd6 {[%emt 0:02:25]} 42. Qa4 {[%emt 0:00:00]} Qd2 {[%emt 0:03:58]} 43. Rb1 {[%emt 0:00:00]} Qd4 {[%emt 0:02:13]} 44. Qb5 {[%emt 0:00:00]} Rd5 {[%emt 0:02:46]} 45. Qb7 {[%emt 0:00:00]} Re5 {[%emt 0:01:02]} 46. Qa6 {[%emt 0:00:00]} Kh6 {[%emt 0:03:38]} 47. g3 {[%emt 0:00:00]} Rf5 {[%emt 0:02:36]} 48. Rf1 {[%emt 0:00:00]} Kg7 {[%emt 0:01:09]} 49. Qa3 {[%emt 0:00:00]} Qc5 {[%emt 0:00:40]} 50. Qa6 {[%emt 0:00:00]} Rf3 {[%emt 0:01:06]} 51. Kg2 {[%emt 0:00:00]} Ra3 {[%emt 0:00:21]} 52. Qe6 {[%emt 0:00:00]} Rc3 {[%emt 0:01:36]} 53. Re1 {[%emt 0:00:00]} Kf8 {[%emt 0:00:12]} 54. Ra1 {[%emt 0:00:00]} Rc2 {[%emt 0:02:08]} 55. Qe1 {[%emt 0:00:00]} a5 {[%emt 0:04:37]} 56. Rxa5 {[%emt 0:00:00]} Rxf2+ {[%emt 0:01:22]} 57. Qxf2 {[%emt 0:00:00]} Qxa5 {[%emt 0:00:05]} 58. Qe3 {[%emt 0:00:00]} Qd5+ {[%emt 0:00:34]} 59. Kh2 {[%emt 0:00:00]} g5 {[%emt 0:00:31]} 60. hxg5 {[%emt 0:00:00]} Qxg5 {[%emt 0:00:07]} 61. Qe4 {[%emt 0:00:00]} Qd2+ {[%emt 0:01:03]} 62. Kh1 {[%emt 0:00:00]} Qh6+ {[%emt 0:00:21]} 63. Kg2 {[%emt 0:00:00]} Qh5 {[%emt 0:00:05]} 64. Qa8+ {[%emt 0:00:00]} Kg7 {[%emt 0:00:17]} 65. Qe4 {[%emt 0:00:10]} Qe5 {[%emt 0:00:29]} 66. Qg4+ {[%emt 0:00:27]} Kf7 {[%emt 0:00:05]} 67. Qc4+ {[%emt 0:00:13]} e6 {[%emt 0:00:23]} 68. Kf2 {[%emt 0:00:54]} Qf5+ {[%emt 0:00:20]} 69. Kg1 {[%emt 0:00:25]} Qf3 {[%emt 0:01:10]} 70. g4 {[%emt 0:00:49]} Qe3+ {[%emt 0:01:02]} 71. Kg2 {[%emt 0:00:16]} Kg6 {[%emt 0:00:48]} 72. Qc2+ {[%emt 0:00:31]} Kg5 {[%emt 0:00:56]} 73. Qxh7 {[%emt 0:02:44]} Qe2+ {[%emt 0:00:14]} 74. Kh1 {[%emt 0:00:30]} Qf3+ {[%emt 0:01:06]} 75. Kh2 {[%emt 0:00:07]} Qf2+ {[%emt 0:00:05]} 76. Kh3 {[%emt 0:00:08]} Qf3+ {[%emt 0:00:54]} 77. Kh2 {[%emt 0:00:06]} Qxg4 {[%emt 0:00:26]} 78. Qg7+ {[%emt 0:00:45]} Kf5 {[%emt 0:00:05]} 79. Qh7+ {[%emt 0:01:02]} Kf4 {[%emt 0:01:30]} 80. Qc7+ {[%emt 0:00:37]} e5 {[%emt 0:00:32]} 81. Qc1+ {[%emt 0:00:08]} Kf5 {[%emt 0:00:53]} 82. Qc8+ {[%emt 0:00:15]} Kg5 {[%emt 0:00:06]} 83. Qc5 {[%emt 0:05:11]} Qe2+ {[%emt 0:01:45]} 84. Kg3 {[%emt 0:02:42]} Qg4+ {[%emt 0:00:28]} 85. Kh2 {[%emt 0:00:05]} Qd4 {[%emt 0:00:21]} 86. Qb5 {[%emt 0:00:42]} f5 {[%emt 0:00:34]} 87. Kg2 {[%emt 0:00:39]} e4 {[%emt 0:00:57]} 88. Qe8 {[%emt 0:01:24]} Qb2+ {[%emt 0:00:24]} 89. Kg3 {[%emt 0:00:58]} f4+ {[%emt 0:01:23]} 90. Kh3 {[%emt 0:00:05]} f3 {[%emt 0:01:13]} 91. Qe5+ {[%emt 0:00:10]} Qxe5 1/2-1/2